bitfinex-derivatives/quotes_BTCF0:USTF0_20210406
["timestamp","ask_amount","ask_price","bid_price","bid_amount"]
[1617679070836,3.94465655,58757.0,58756.0,0.1190266]
[1617679070837,4.38611337,58757.0,58756.0,0.1190266]
[1617679071636,3.51350337,58757.0,58756.0,0.1190266]
[1617679071931,0.67610337,58757.0,58756.0,0.1190266]
[1617679072332,0.97714995,58757.0,58756.0,0.41902391]
[1617679072532,4.25744995,58757.0,58756.0,0.41902391]
[1617679073232,4.61921041,58757.0,58756.0,0.41902391]
[1617679076136,5.61921041,58757.0,58756.0,0.41902391]
[1617679076538,5.61921041,58757.0,58756.0,0.29999731]
[1617679078039,4.61921041,58757.0,58756.0,0.29999731]
[1617679080552,5.61921041,58757.0,58756.0,0.29999731]
[1617679081144,4.61921041,58757.0,58756.0,0.29999731]
[1617679082946,5.61921041,58757.0,58756.0,0.29999731]
[1617679083149,5.9804645,58757.0,58756.0,0.66002401]
[1617679085950,6.48217663,58757.0,58756.0,0.29999731]
[1617679086351,6.48217663,58757.0,58756.0,0.3602926]
[1617679086752,5.9804645,58757.0,58756.0,0.29999731]
[1617679086952,4.9804645,58757.0,58756.0,0.29999731]
[1617679087153,4.9804645,58757.0,58756.0,0.66034827]
[1617679087753,5.9804645,58757.0,58756.0,0.66034827]
[1617679088454,6.48222457,58757.0,58756.0,0.64724827]
[1617679089255,6.48222457,58757.0,58756.0,0.28689731]
[1617679089555,5.48222457,58757.0,58756.0,0.28689731]
[1617679091759,5.48222457,58757.0,58756.0,0.28439731]
[1617679092761,6.48222457,58757.0,58756.0,0.28439731]
[1617679094464,6.48222457,58757.0,58748.0,0.4799]
[1617679094465,4.51494655,58757.0,58748.0,0.4799]
[1617679094665,1.23464655,58757.0,58748.0,0.4799]
[1617679094865,0.5017725,58756.0,58754.0,0.36041892]
[1617679095066,3.551,58755.0,58754.0,0.36041892]
[1617679095365,4.35387832,58755.0,58754.0,0.36041892]
[1617679095767,4.95683719,58755.0,58754.0,0.36041892]
[1617679097367,4.95683719,58755.0,58753.0,0.36023068]
[1617679097769,1.40566385,58754.0,58753.0,0.36023068]
[1617679099670,2.40566385,58754.0,58753.0,0.36023068]
[1617679102978,1.40566385,58754.0,58753.0,0.36023068]
[1617679103680,1.45696385,58754.0,58753.0,0.36023068]
[1617679103880,1.40566385,58754.0,58753.0,0.36023068]
[1617679104179,1.40566385,58754.0,58753.0,0.34973068]
[1617679104385,1.40566385,58754.0,58753.0,0.41002688]
[1617679104784,1.40566385,58754.0,58753.0,0.34973068]
[1617679104983,1.45666385,58754.0,58753.0,0.34973068]
[1617679105188,1.40566385,58754.0,58753.0,0.34973068]
[1617679107685,1.40566385,58754.0,58753.0,0.32433068]
[1617679107985,1.40566385,58754.0,58753.0,0.3846267]
[1617679108287,1.40566385,58754.0,58753.0,0.32433068]
[1617679109387,1.40566385,58754.0,58753.0,0.24733068]
[1617679109587,1.40566385,58754.0,58753.0,0.30762652]
[1617679109987,1.04455348,58754.0,58753.0,0.24733068]
[1617679111289,1.04455348,58754.0,58753.0,0.30452661]
[1617679111489,1.09595348,58754.0,58753.0,0.30452661]
[1617679111790,1.09595348,58754.0,58753.0,0.22593068]
[1617679120505,1.59817454,58754.0,58753.0,0.22593068]
[1617679120905,1.2363954,58754.0,58753.0,0.22593068]
[1617679121708,1.2363954,58754.0,58753.0,0.22353068]
[1617679121908,1.2363954,58754.0,58753.0,0.28382718]
[1617679122307,1.2363954,58754.0,58753.0,0.5837542]
[1617679122308,1.03554709,58754.0,58753.0,0.5837542]
[1617679123010,4.62524709,58754.0,58753.0,0.5837542]
[1617679123211,4.62524709,58754.0,58753.0,0.4898577]
[1617679123411,4.62524709,58754.0,58753.0,0.4842577]
[1617679123611,5.48924691,58754.0,58753.0,0.54455413]
[1617679124113,5.48924691,58754.0,58753.0,0.4805577]
[1617679128320,6.48924691,58754.0,58753.0,0.4552577]
[1617679128523,6.48924691,58754.0,58753.0,0.4170577]
[1617679128722,6.48924691,58754.0,58753.0,0.4773551]
[1617679129021,6.48924691,58754.0,58753.0,0.4170577]
[1617679130521,6.48924691,58754.0,58753.0,0.3587577]
[1617679130922,6.48924691,58754.0,58753.0,0.4087553]
[1617679131122,6.48924691,58754.0,58753.0,0.3802553]
[1617679131323,2.89954691,58754.0,58753.0,0.2466577]
[1617679131623,2.89954691,58754.0,58753.0,0.19755554]
[1617679132024,5.20316831,58754.0,58753.0,0.16565554]
[1617679132224,5.15176831,58754.0,58753.0,0.16565554]
[1617679132724,5.51355332,58754.0,58753.0,0.1053577]
[1617679132923,5.51355332,58754.0,58753.0,0.1656554]
[1617679133424,5.51355332,58754.0,58753.0,0.1053577]
[1617679134827,2.84815332,58754.0,58753.0,0.0596577]
[1617679135027,2.84815332,58754.0,58753.0,0.11995756]
[1617679135429,4.60306831,58754.0,58753.0,0.0596577]
[1617679135628,5.60306831,58754.0,58753.0,0.0596577]
[1617679135828,5.96488244,58754.0,58753.0,0.0596577]
[1617679136128,5.96488244,58754.0,58753.0,0.0564577]
[1617679136329,6.52771387,58754.0,58745.0,0.44031414]
[1617679136930,1.44200848,58746.0,58744.0,0.44038677]
[1617679137530,1.6832156,58745.0,58744.0,0.44038677]
[1617679138530,1.79047215,58745.0,58744.0,0.44038677]
[1617679139232,1.79047215,58745.0,58743.0,0.44050327]
[1617679139733,0.68323846,58744.0,58743.0,0.44050327]
[1617679140032,3.74743846,58744.0,58743.0,0.44050327]
[1617679140433,4.1092677,58744.0,58743.0,0.44050327]
[1617679141034,2.0450677,58744.0,58743.0,0.44050327]
[1617679141233,1.0450677,58744.0,58743.0,0.44050327]
[1617679141435,0.68323846,58744.0,58743.0,0.44050327]
[1617679141934,0.24122026,58744.0,58743.0,0.44050327]
[1617679142734,2.86262026,58744.0,58743.0,0.44050327]
[1617679143234,2.86262026,58744.0,58743.0,1.00046476]
[1617679145435,2.6214,58744.0,58743.0,1.00046476]
[1617679147237,2.6214,58744.0,58742.0,0.10725655]
[1617679147639,0.10725655,58745.0,58742.0,0.10725655]
[1617679147838,0.10725655,58745.0,58743.0,0.93935585]
[1617679148038,0.10725655,58745.0,58744.0,0.69817735]
[1617679150641,0.10725655,58745.0,58744.0,0.43970198]
[1617679150841,3.72615655,58745.0,58744.0,0.43970198]
[1617679152343,3.72615655,58745.0,58744.0,0.39850198]
[1617679152558,3.72615655,58745.0,58744.0,0.36320198]
[1617679152559,4.72615655,58745.0,58744.0,0.36320198]
[1617679152844,4.72615655,58745.0,58726.0,0.56058899]
[1617679153044,4.84646655,58745.0,58726.0,0.56058899]
[1617679153360,0.00210859,58727.0,58726.0,0.56058899]
[1617679153743,0.00210859,58727.0,58725.0,0.5606551]
[1617679154544,0.10725655,58726.0,58725.0,0.5606551]
[1617679155148,0.10725655,58726.0,58725.0,4.0738551]
[1617679155748,0.10725655,58726.0,58725.0,3.60365896]
[1617679156149,0.10725655,58726.0,58725.0,4.16352123]
[1617679156651,0.10725655,58726.0,58725.0,4.52352262]
[1617679157652,0.10725655,58726.0,58725.0,3.96366035]
[1617679158054,0.10725655,58726.0,58725.0,4.10437648]
[1617679158453,0.10725655,58726.0,58725.0,4.52354604]
[1617679163665,0.10725655,58726.0,58725.0,5.02504668]
[1617679165269,0.10725655,58726.0,58725.0,1.51184668]
[1617679165469,0.21030655,58726.0,58725.0,1.51184668]
[1617679165669,3.23120655,58726.0,58725.0,1.51184668]
[1617679165872,3.23120655,58726.0,58725.0,0.86150203]
[1617679166374,3.23120655,58726.0,58725.0,0.92181065]
[1617679166670,3.23120655,58726.0,58725.0,1.16237713]
[1617679167175,0.21030655,58726.0,58725.0,1.16237713]
[1617679168773,0.21030655,58726.0,58725.0,1.72401524]
[1617679169373,3.13310655,58726.0,58725.0,1.72401524]
[1617679172780,3.13310655,58726.0,58725.0,2.16530983]
[1617679173181,3.13310655,58726.0,58725.0,1.60367172]
[1617679177085,0.21030655,58726.0,58725.0,1.60367172]
[1617679177286,0.21030655,58726.0,58725.0,5.15667172]
[1617679178088,0.21030655,58726.0,58725.0,5.30744145]
[1617679178789,0.21030655,58726.0,58725.0,5.86907697]
[1617679178993,0.21030655,58726.0,58725.0,2.31607697]
[1617679179392,3.75190655,58726.0,58725.0,2.31607697]
[1617679179691,3.75190655,58726.0,58725.0,2.16530724]
[1617679182391,3.75190655,58726.0,58725.0,1.60367172]
[1617679182791,3.75190655,58726.0,58725.0,1.6639805]
[1617679183292,0.21030655,58726.0,58725.0,1.60367172]
[1617679183491,0.10725655,58726.0,58725.0,4.30287172]
[1617679183991,0.10725655,58726.0,58725.0,4.46762172]
[1617679184193,0.10725655,58726.0,58725.0,5.18016325]
[1617679185593,0.10725655,58726.0,58725.0,6.18016325]
[1617679185792,0.00506603,58735.0,58726.0,0.2]
[1617679185993,0.01003272,58736.0,58726.0,0.2]
[1617679185994,0.00506672,58736.0,58726.0,0.2]
[1617679186195,0.00506672,58736.0,58734.0,1.0]
[1617679186495,0.29814193,58738.0,58726.0,0.2]
[1617679186496,0.00506854,58738.0,58735.0,2.6049]
[1617679186694,0.00506854,58738.0,58737.0,0.10725655]
[1617679186893,0.00506854,58738.0,58737.0,0.22800655]
[1617679187110,0.0100377,58739.0,58737.0,0.22800655]
[1617679187111,0.0100377,58739.0,58737.0,1.83286543]
[1617679187112,0.00506935,58739.0,58737.0,1.83286543]
[1617679187405,0.00507116,58741.0,58737.0,2.83286543]
[1617679187603,0.00507116,58741.0,58738.0,1.0]
[1617679187804,0.00507116,58741.0,58740.0,1.0]
[1617679187995,0.00507164,58742.0,58740.0,2.60482516]
[1617679188397,0.00507164,58742.0,58741.0,1.0]
[1617679188700,0.10725655,58742.0,58741.0,1.66447102]
[1617679189296,0.1123258,58742.0,58741.0,1.60417408]
[1617679189504,0.1123258,58742.0,58741.0,1.16316797]
[1617679189505,0.11729298,58742.0,58741.0,1.16316797]
[1617679189898,0.10725655,58742.0,58741.0,1.10286968]
[1617679190194,0.10725655,58742.0,58741.0,1.21764968]
[1617679190395,0.10725655,58742.0,58741.0,1.71897148]
[1617679190794,0.10725655,58742.0,58741.0,1.77926841]
[1617679190795,0.11232611,58742.0,58741.0,1.77926841]
[1617679191897,0.10725655,58742.0,58741.0,1.77926841]
[1617679195600,0.11232557,58742.0,58741.0,1.77926841]
[1617679196100,0.10725655,58742.0,58741.0,1.77926841]
[1617679199406,0.10725655,58742.0,58741.0,1.66448841]
[1617679199814,0.11729307,58742.0,58741.0,1.10286968]
[1617679200407,0.10725655,58742.0,58741.0,1.10286968]
[1617679200710,0.40543951,58742.0,58741.0,1.10286968]
[1617679201709,0.11232615,58742.0,58741.0,1.60422136]
[1617679202109,0.10725655,58742.0,58741.0,1.60422136]
[1617679208417,0.11728597,58742.0,58741.0,1.10286968]
[1617679210318,0.11232312,58742.0,58741.0,1.60409047]
[1617679211017,0.11232312,58742.0,58741.0,1.10286968]
[1617679211419,0.10725655,58742.0,58741.0,1.66438387]
[1617679211820,0.10725655,58742.0,58741.0,1.6040853]
[1617679212221,0.10725655,58742.0,58741.0,1.6643826]
[1617679212521,0.10725655,58742.0,58741.0,1.6040853]
[1617679216824,0.11231958,58742.0,58741.0,1.6040853]
[1617679217828,0.11231958,58742.0,58741.0,1.10286968]
[1617679218231,0.11728086,58742.0,58741.0,1.10286968]
[1617679219129,0.11728086,58742.0,58741.0,1.60422591]
[1617679219932,0.11232017,58742.0,58741.0,1.60422591]
[1617679220530,0.11232017,58742.0,58741.0,1.70395591]
[1617679220931,0.10725655,58742.0,58741.0,1.70395591]
[1617679221232,0.10725655,58742.0,58741.0,1.76425171]
[1617679221731,3.31015655,58742.0,58741.0,1.76425171]
[1617679222135,3.31015655,58742.0,58741.0,1.66452171]
[1617679222535,3.31015655,58742.0,58741.0,2.66452171]
[1617679223035,0.10725655,58742.0,58741.0,2.66452171]
[1617679223240,0.10725655,58742.0,58741.0,5.33112171]
[1617679223843,0.10725655,58742.0,58741.0,5.42156625]
[1617679224152,0.10725655,58742.0,58741.0,5.56816625]
[1617679224347,0.10725655,58742.0,58741.0,5.70885587]
[1617679226437,0.10725655,58742.0,58741.0,5.56225587]
[1617679226838,0.10725655,58742.0,58741.0,1.89565587]
[1617679227240,0.11231882,58742.0,58741.0,1.75496625]
[1617679227541,0.11231882,58742.0,58741.0,1.66452171]
[1617679228840,0.10725655,58742.0,58741.0,1.66452171]
[1617679229140,0.10725655,58742.0,58741.0,2.66452171]
[1617679229941,0.10725655,58742.0,58741.0,1.66452171]
[1617679231946,0.11231603,58742.0,58741.0,1.60422591]
[1617679232348,0.11231603,58742.0,58741.0,4.70332591]
[1617679232748,0.11231603,58742.0,58741.0,4.85407328]
[1617679233250,0.10725655,58742.0,58741.0,4.85407328]
[1617679233547,0.11727038,58742.0,58741.0,1.75497328]
[1617679234148,0.11727038,58742.0,58741.0,1.60422591]
[1617679234748,0.11727038,58742.0,58741.0,1.10286968]
[1617679234749,0.40460253,58742.0,58741.0,1.10286968]
[1617679235150,0.76130759,58742.0,58741.0,1.16317316]
[1617679235349,1.76130759,58742.0,58741.0,1.16317316]
[1617679235556,2.00253096,58742.0,58741.0,1.10286968]
[1617679236555,2.43807531,58742.0,58741.0,0.66172181]
[1617679236850,1.43807531,58742.0,58741.0,0.66172181]
[1617679237050,1.00253096,58742.0,58741.0,0.66172181]
[1617679237750,1.438829,58742.0,58741.0,1.0964531]
[1617679238353,1.438829,58742.0,58741.0,1.03614697]
[1617679241255,1.438829,58742.0,58741.0,0.98474697]
[1617679242057,1.00253096,58742.0,58741.0,0.54282181]
[1617679244159,1.43853584,58742.0,58741.0,0.54282181]
[1617679244560,1.43853584,58742.0,58741.0,0.30078264]
[1617679247864,2.43853584,58742.0,58741.0,0.30078264]
[1617679248765,2.43853584,58742.0,58741.0,0.23438264]
[1617679249166,2.43853584,58742.0,58741.0,0.29469948]
[1617679249565,2.43853584,58742.0,58741.0,0.23438264]
[1617679253569,1.43853584,58742.0,58741.0,0.23438264]
[1617679255213,1.33127929,58742.0,58741.0,3.30383919]
[1617679255400,0.29734598,58742.0,58741.0,4.94485595]
[1617679255773,0.00505466,58743.0,58741.0,5.59672005]
[1617679256173,0.00505684,58746.0,58742.0,1.09280779]
[1617679256373,0.00505684,58746.0,58743.0,0.2]
[1617679256678,0.00505684,58746.0,58745.0,1.64095445]
[1617679256883,0.00505684,58746.0,58745.0,1.75716445]
[1617679257093,0.01001501,58748.0,58745.0,1.75716445]
[1617679257094,0.00505705,58747.0,58745.0,2.25823968]
[1617679257474,0.10725655,58755.0,58745.0,2.25823968]
[1617679257475,0.10725655,58755.0,58745.0,1.31853304]
[1617679257476,0.00505861,58749.0,58745.0,1.31853304]
[1617679257973,0.01001804,58750.0,58748.0,0.94198504]
[1617679257974,0.00505943,58750.0,58748.0,0.94198504]
[1617679258174,0.00505943,58750.0,58749.0,0.2]
[1617679258373,0.00505943,58750.0,58749.0,0.64092415]
[1617679258775,0.00505943,58750.0,58749.0,0.70121723]
[1617679259176,0.00505943,58750.0,58749.0,0.80847378]
[1617679259777,0.01001966,58751.0,58749.0,1.30950892]
[1617679259778,0.00506154,58751.0,58749.0,1.30950892]
[1617679260177,0.00506065,58752.0,58749.0,1.30950892]
[1617679260578,0.00506065,58752.0,58751.0,0.44078727]
[1617679260877,0.00506065,58752.0,58751.0,0.64078727]
[1617679261477,0.00506065,58752.0,58751.0,0.7010782]
[1617679261677,0.00506065,58752.0,58751.0,1.7010782]
[1617679261878,0.00506169,58754.0,58751.0,1.7010782]
[1617679262283,0.00506254,58755.0,58753.0,0.4407792]
[1617679262479,0.00506254,58755.0,58754.0,0.2]
[1617679262681,0.01002552,58755.0,58754.0,0.64077651]
[1617679263279,0.00506334,58755.0,58754.0,0.70106622]
[1617679264078,0.01002741,58756.0,58754.0,0.70106622]
[1617679264478,0.01002741,58756.0,58755.0,1.0]
[1617679264678,0.01002757,58757.0,58755.0,1.50106298]
[1617679264881,0.01002757,58757.0,58755.0,0.50106298]
[1617679265078,0.01002653,58756.0,58755.0,0.50106298]
[1617679265980,0.01002653,58756.0,58755.0,4.11026298]
[1617679266180,0.01002653,58756.0,58755.0,4.31026298]
[1617679266389,0.10725655,58764.0,58755.0,4.67088086]
[1617679266390,0.00506609,58757.0,58755.0,4.67088086]
[1617679266780,0.00506609,58757.0,58755.0,3.67088086]
[1617679266980,0.10725655,58764.0,58755.0,3.67088086]
[1617679266981,0.00506736,58759.0,58756.0,2.45274744]
[1617679267280,0.00506736,58759.0,58757.0,0.2]
[1617679267480,0.00506881,58760.0,58758.0,0.80123647]
[1617679267681,0.00506881,58760.0,58759.0,0.2]
[1617679267980,0.00507135,58762.0,58759.0,2.00123511]
[1617679268382,0.00505944,58768.0,58761.0,0.55963539]
[1617679268682,0.00505944,58768.0,58761.0,1.55963539]
[1617679268881,0.01001967,58769.0,58765.0,0.35963531]
[1617679269081,0.01001967,58769.0,58768.0,0.10725655]
[1617679269282,0.01002181,58770.0,58768.0,0.30725655]
[1617679270182,1.29007691,58831.0,58768.0,0.30725655]
[1617679270183,0.01002499,58771.0,58768.0,0.30725655]
[1617679270583,0.01002418,58772.0,58768.0,0.66688705]
[1617679271583,0.01002418,58772.0,58768.0,0.46688705]
[1617679272184,0.46468232,58776.0,58768.0,0.46688705]
[1617679272185,0.0050595,58769.0,58768.0,0.10725655]
[1617679273186,0.11231605,58769.0,58768.0,0.10725655]
[1617679273385,0.0100198,58770.0,58768.0,0.10725655]
[1617679273586,0.0100198,58770.0,58768.0,0.23688655]
[1617679273988,0.00505998,58770.0,58768.0,0.59650402]
[1617679274287,0.00505998,58770.0,58768.0,0.23688655]
[1617679274788,0.00505742,58769.0,58768.0,0.23688655]
[1617679275088,0.11231397,58769.0,58768.0,0.23688655]
[1617679275587,0.11231397,58769.0,58768.0,3.46678655]
[1617679276091,0.10725655,58769.0,58768.0,3.82639834]
[1617679278795,0.10725655,58769.0,58768.0,3.46678655]
[1617679279091,0.10725655,58769.0,58768.0,3.76619732]
[1617679279594,0.10725655,58769.0,58768.0,0.53629732]
[1617679280404,0.10725655,58769.0,58768.0,0.10725655]
[1617679280994,0.10725655,58769.0,58764.0,2.7958]
[1617679281195,0.10725655,58769.0,58765.0,0.10725655]
[1617679284107,0.10725655,58769.0,58765.0,0.4062788]
[1617679284501,0.10725655,58769.0,58767.0,0.29901927]
[1617679284704,3.2623,58774.0,58767.0,0.29901927]
[1617679285200,3.2623,58774.0,58773.0,0.10725655]
[1617679285401,0.00504742,58775.0,58773.0,2.57275655]
[1617679287202,0.10725655,58774.0,58773.0,2.57275655]
[1617679287403,0.11724848,58774.0,58773.0,2.57275655]
[1617679287903,0.10725655,58774.0,58773.0,2.57275655]
[1617679288204,0.11724884,58774.0,58773.0,2.57275655]
[1617679288404,0.16814884,58774.0,58773.0,2.57275655]
[1617679289204,0.16814884,58774.0,58773.0,0.10725655]
[1617679289604,3.41684884,58774.0,58773.0,0.10725655]
[1617679289839,3.36594884,58774.0,58764.0,0.29903082]
[1617679290041,1.11724884,58774.0,58764.0,0.29903082]
[1617679290304,3.25,58765.0,58764.0,0.29903082]
[1617679290504,3.25,58765.0,58759.0,0.29905376]
[1617679290505,3.36687,58765.0,58759.0,0.29905376]
[1617679290904,3.36687,58765.0,58747.0,0.4742]
[1617679290905,3.36687,58765.0,58757.0,0.29899004]
[1617679291204,3.36687,58765.0,58762.0,0.10725655]
[1617679292607,0.11687,58765.0,58762.0,0.10725655]
[1617679292806,2.5681,58763.0,58762.0,0.10725655]
[1617679293207,2.67535655,58763.0,58762.0,0.10725655]
[1617679293506,2.67535655,58763.0,58759.0,0.29898901]
[1617679293909,2.67535655,58763.0,58756.0,2.7657]
[1617679294412,2.68040292,58763.0,58756.0,2.7657]
[1617679295311,0.10725655,58757.0,58756.0,2.7657]
[1617679300817,0.10725655,58757.0,58756.0,3.06470126]
[1617679301317,0.10725655,58757.0,58756.0,3.42377877]
[1617679302220,0.10725655,58757.0,58756.0,3.62377877]
[1617679302427,2.5681,58763.0,58756.0,3.62377877]
[1617679303119,2.5681,58763.0,58762.0,0.29933369]
[1617679303319,2.5681,58763.0,58762.0,0.40659024]
[1617679303834,2.5681,58763.0,58762.0,0.76578014]
[1617679304722,2.5681,58763.0,58762.0,0.82606321]
[1617679306224,2.5681,58763.0,58762.0,0.46687331]
[1617679307228,2.5681,58763.0,58762.0,0.82606197]
[1617679312336,0.10725655,58764.0,58762.0,3.52336197]
[1617679312937,0.10725655,58764.0,58763.0,0.71909503]
[1617679313937,0.11233121,58764.0,58763.0,1.66125559]
[1617679315439,0.10725655,58764.0,58763.0,1.66125559]
[1617679316539,0.11233161,58764.0,58763.0,1.76417559]
[1617679316742,0.00507506,58764.0,58763.0,1.76417559]
[1617679317239,0.01005093,58766.0,58763.0,1.76417559]
[1617679317240,0.00507594,58766.0,58763.0,1.76417559]
[1617679317840,0.00507594,58766.0,58765.0,1.60360454]
[1617679318341,0.00507594,58766.0,58765.0,1.80360454]
[1617679318641,0.00507594,58766.0,58765.0,1.60360454]
[1617679318941,0.00507594,58766.0,58765.0,1.66387998]
[1617679319244,0.00507688,58767.0,58765.0,1.60360454]
[1617679319843,0.01005421,58768.0,58766.0,1.6035863]
[1617679320145,0.01005237,58767.0,58766.0,1.75427569]
[1617679320543,0.01005237,58767.0,58766.0,1.6035863]
[1617679321346,0.29868463,58768.0,58766.0,1.30246558]
[1617679321747,0.29868463,58768.0,58767.0,1.16274036]
[1617679321948,0.29868463,58768.0,58767.0,1.36274036]
[1617679322547,0.29868463,58768.0,58767.0,1.16274036]
[1617679322948,0.29868463,58768.0,58767.0,1.10246485]
[1617679329256,0.10725655,58772.0,58762.0,2.80455655]
[1617679329456,0.10725655,58772.0,58771.0,0.10725655]
[1617679329659,0.10725655,58772.0,58771.0,0.76855688]
[1617679330158,0.76407849,58772.0,58771.0,0.82883414]
[1617679330960,1.00518253,58772.0,58771.0,0.82883414]
[1617679333262,1.00518253,58772.0,58771.0,4.49773414]
[1617679333463,1.00518253,58772.0,58771.0,4.93859092]
[1617679333964,1.00518253,58772.0,58771.0,5.02900376]
[1617679334964,1.12417253,58772.0,58771.0,1.36010376]
[1617679335166,3.97527253,58772.0,58771.0,1.36010376]
[1617679335365,3.97527253,58772.0,58771.0,0.82883414]
[1617679335566,3.97527253,58772.0,58771.0,0.72157759]
[1617679336166,3.97527253,58772.0,58771.0,0.66130033]
[1617679338669,3.97527253,58772.0,58771.0,1.10224619]
[1617679339468,3.97527253,58772.0,58771.0,1.20950274]
[1617679339969,3.97527253,58772.0,58771.0,1.26977839]
[1617679344679,3.07734655,58772.0,58771.0,1.26977839]
[1617679345280,3.73425043,58772.0,58771.0,1.26977839]
[1617679345580,3.37594827,58772.0,58771.0,1.26977839]
[1617679346481,3.73423945,58772.0,58771.0,1.26977839]
[1617679346980,0.88313945,58772.0,58771.0,1.26977839]
[1617679347180,0.76414945,58772.0,58771.0,1.37574839]
[1617679347380,0.76414945,58772.0,58771.0,4.39884839]
[1617679348180,1.00525081,58772.0,58771.0,4.4892614]
[1617679349981,1.00525081,58772.0,58771.0,1.4661614]
[1617679350184,1.00525081,58772.0,58771.0,1.3601914]
[1617679350482,3.65705963,58772.0,58771.0,1.3601914]
[1617679350683,4.01530269,58772.0,58771.0,1.26977839]
[1617679353085,1.00520269,58772.0,58771.0,1.26977839]
[1617679353485,1.00520269,58772.0,58771.0,4.67567839]
[1617679354285,1.00520269,58772.0,58771.0,4.76609161]
[1617679364501,1.00520269,58772.0,58771.0,4.96609161]
[1617679372412,1.00520269,58772.0,58771.0,5.46804794]
[1617679374223,1.00520269,58772.0,58771.0,5.62991794]
[1617679377218,0.89794614,58772.0,58771.0,5.62991794]
[1617679377418,0.89794614,58772.0,58771.0,6.62991794]
[1617679377745,0.0100771,58773.0,58771.0,6.62991794]
[1617679377925,0.0100771,58773.0,58771.0,3.22401794]
[1617679378208,0.0100771,58773.0,58771.0,2.22401794]
[1617679378418,0.01007898,58775.0,58773.0,0.2]
[1617679378623,0.01008886,58781.0,58773.0,0.2]
[1617679378821,0.01008886,58781.0,58773.0,1.2]
[1617679379019,0.01008886,58781.0,58780.0,1.0]
[1617679379219,0.49954837,58796.0,58784.0,3.4007]
[1617679379220,0.0100983,58787.0,58784.0,3.4007]
[1617679379520,0.01010271,58789.0,58784.0,3.50724]
[1617679379721,0.01010271,58789.0,58788.0,0.10725655]
[1617679379920,0.01010345,58790.0,58788.0,1.71307336]
[1617679380218,0.01010345,58790.0,58788.0,2.71307336]
[1617679380421,0.01010345,58790.0,58789.0,2.66606243]
[1617679380621,0.01010345,58790.0,58789.0,2.86606243]
[1617679381122,0.00910345,58790.0,58789.0,2.86606243]
[1617679382622,0.10725655,58795.0,58789.0,2.36424785]
[1617679383022,0.10725655,58795.0,58791.0,0.2]
[1617679383322,0.10725655,58795.0,58794.0,1.85936006]
[1617679383524,0.10725655,58795.0,58794.0,2.29893028]
[1617679383723,0.40612345,58801.0,58794.0,2.40618683]
[1617679383924,0.10725655,58801.0,58794.0,2.46644224]
[1617679384125,0.10725655,58801.0,58800.0,3.1503]
[1617679384324,0.10725655,58801.0,58800.0,3.60238903]
[1617679385824,0.10725655,58801.0,58800.0,3.70964558]
[1617679387026,0.10725655,58801.0,58800.0,4.06912237]
[1617679389631,0.22028655,58801.0,58800.0,0.65918582]
[1617679389833,3.62578655,58801.0,58800.0,0.65918582]
[1617679390449,3.62578655,58801.0,58800.0,0.29970903]
[1617679390451,3.92434803,58801.0,58800.0,0.29970903]
[1617679390840,4.92434803,58801.0,58797.0,0.29954169]
[1617679391040,0.1281,58800.0,58797.0,0.29954169]
[1617679391234,0.29842643,58799.0,58797.0,0.29954169]
[1617679392034,0.1281,58800.0,58795.0,0.29955755]
[1617679392035,0.29831239,58798.0,58795.0,0.29955755]
[1617679392436,0.29831239,58798.0,58796.0,0.2995582]
[1617679392835,0.29831239,58798.0,58795.0,0.29944755]
[1617679393236,0.29831239,58798.0,58782.0,0.10725655]
[1617679393237,0.4264459,58800.0,58797.0,0.29944497]
[1617679393936,0.4264459,58800.0,58798.0,0.10725655]
[1617679394939,3.4286,58799.0,58798.0,0.10725655]
[1617679395439,3.72695101,58799.0,58798.0,0.10725655]
[1617679396039,0.29835101,58799.0,58795.0,0.29944834]
[1617679396243,0.29835101,58799.0,58796.0,0.2994497]
[1617679396738,0.29831618,58798.0,58795.0,3.50425297]
[1617679397039,0.29829482,58799.0,58795.0,3.50425297]
[1617679397940,0.29829482,58799.0,58796.0,0.10725655]
[1617679398140,3.067,58797.0,58796.0,0.10725655]
[1617679398741,3.067,58797.0,58795.0,0.29945297]
[1617679399542,3.3652433,58797.0,58793.0,0.29941547]
[1617679399944,0.10725655,58794.0,58793.0,0.29941547]
[1617679400146,0.10725655,58794.0,58792.0,0.29942126]
[1617679400944,0.10725655,58794.0,58791.0,0.2994198]
[1617679401747,0.10725655,58794.0,58792.0,0.29943179]
[1617679402248,0.10725655,58794.0,58785.0,0.29944711]
[1617679402249,0.65538113,58793.0,58785.0,0.29944711]
[1617679402448,1.65538113,58793.0,58785.0,0.29944711]
[1617679402651,0.29770404,58786.0,58782.0,0.29945081]
[1617679402849,0.43315404,58786.0,58782.0,0.29945081]
[1617679403250,0.43315404,58786.0,58775.0,0.06026331]
[1617679403251,0.43315404,58786.0,58780.0,0.29946457]
[1617679403252,0.29763626,58784.0,58780.0,0.29946457]
[1617679403549,0.13545,58786.0,58779.0,0.29946482]
[1617679403550,0.29760636,58783.0,58779.0,0.29946482]
[1617679403949,0.10725655,58780.0,58779.0,0.29946482]
[1617679404151,0.10725655,58780.0,58777.0,0.35957225]
[1617679404351,3.2586,58778.0,58777.0,0.35957225]
[1617679405256,3.2586,58778.0,58777.0,0.65920659]
[1617679407556,3.2586,58778.0,58777.0,0.71947244]
[1617679407958,3.2586,58778.0,58777.0,0.65920659]
[1617679415068,3.2586,58778.0,58777.0,0.29963434]
[1617679421178,3.2586,58778.0,58777.0,0.65920862]
[1617679421778,0.10725655,58780.0,58777.0,4.30690862]
[1617679422479,0.10725655,58780.0,58779.0,0.29964308]
[1617679427388,0.10725655,58780.0,58779.0,0.65935287]
[1617679428086,0.10725655,58780.0,58779.0,0.76660942]
[1617679428288,0.10725655,58780.0,58779.0,1.20622055]
[1617679428788,0.10725655,58780.0,58779.0,4.26977565]
[1617679429087,0.35801103,58791.0,58779.0,4.26977565]
[1617679429088,0.29850278,58791.0,58779.0,4.26977565]
[1617679429309,0.29850278,58791.0,58779.0,1.26647565]
[1617679429493,0.29850278,58791.0,58779.0,2.26647565]
[1617679429688,0.29866277,58795.0,58790.0,0.65935085]
[1617679429887,0.29866277,58795.0,58790.0,0.82215085]
[1617679430188,0.29876663,58796.0,58794.0,0.10725655]
[1617679430588,0.40604872,58797.0,58794.0,0.76658656]
[1617679430991,0.40604872,58797.0,58795.0,0.29969454]
[1617679431291,0.40604872,58797.0,58796.0,0.29967895]
[1617679433795,0.10725655,58797.0,58796.0,0.65929471]
[1617679434194,0.10725655,58797.0,58796.0,0.29967895]
[1617679434895,0.40604275,58797.0,58796.0,0.29967895]
[1617679435694,0.10725655,58797.0,58796.0,0.65928293]
[1617679436496,0.10725655,58797.0,58796.0,0.35992881]
[1617679436996,0.40587845,58797.0,58796.0,0.29967895]
[1617679440399,0.10725655,58797.0,58796.0,0.65936442]
[1617679443404,0.40562341,58797.0,58796.0,0.65936442]
[1617679444603,0.40562341,58797.0,58796.0,0.29967895]
[1617679445504,0.40562341,58797.0,58796.0,0.6595344]
[1617679445706,0.40562341,58797.0,58796.0,0.29967895]
[1617679446108,0.40562341,58797.0,58796.0,0.65952658]